bitfinex-derivatives/quotes_SOLF0:USTF0_20251126
["timestamp","ask_amount","ask_price","bid_price","bid_amount"]
[1764197398077,2.88,143.22,143.18,97.7998]
[1764197398884,2.88,143.22,143.19,0.04686727]
[1764197399076,0.0506379,143.21,143.2,23.94]
[1764197399275,0.0506379,143.21,143.02,2.93]
[1764197399276,2.88,143.12,143.02,2.93]
[1764197399579,2.88,143.12,143.05,2.93]
[1764197399882,2.88,143.1,143.07,6.2919]
[1764197400082,11.44805868,143.09,143.08,24.14]
[1764197400481,11.44805868,143.09,143.08,27.07]
[1764197400984,0.0513106,143.1,143.09,6.2913]
[1764197401184,2.88,143.13,143.09,4.27236762]
[1764197401874,2.88,143.13,143.11,6.2901]
[1764197402272,2.92563329,143.13,143.12,24.14]
[1764197403283,2.92563329,143.13,143.12,28.41236762]
[1764197406498,0.04563329,143.13,143.12,28.41236762]
[1764197409181,0.04563329,143.13,143.12,31.26236762]
[1764197412989,10.52369261,143.13,143.12,31.26236762]
[1764197414690,10.52369261,143.13,143.12,29.72329364]
[1764197420894,2.88,143.15,143.13,6.2895]
[1764197421192,2.88,143.15,143.14,2.73329364]
[1764197427195,2.88,143.15,143.14,5.57329364]
[1764197427795,2.88,143.15,143.14,2.73329364]
[1764197428800,2.88,143.15,143.14,9.02239364]
[1764197429789,2.88,143.15,143.14,33.10239364]
[1764197432701,2.88,143.15,143.14,35.94239364]
[1764197432902,13.22156482,143.15,143.14,35.94239364]
[1764197437401,13.22156482,143.15,143.14,33.10239364]
[1764197437802,13.22156482,143.15,143.14,35.94239364]
[1764197438306,10.34156482,143.15,143.14,35.94239364]
[1764197440307,0.04537434,143.16,143.15,9.1286]
[1764197448309,0.04537434,143.16,143.15,9.1286]
[1764197452324,10.15760175,143.16,143.15,9.1286]
[1764197453711,5.24409219,143.16,143.15,9.1286]
[1764197453918,10.11958544,143.16,143.15,9.1286]
[1764197455717,10.11958544,143.16,143.15,11.86189364]
[1764197456321,10.11958544,143.16,143.15,35.86189364]
[1764197458013,16.62843406,143.16,143.15,35.86189364]
[1764197458216,10.11958544,143.16,143.15,35.86189364]
[1764197460817,10.11958544,143.16,143.11,110.4267]
[1764197460818,3.0,143.15,143.11,100.7867]
[1764197461018,11.70308669,143.16,143.14,5.67329364]
[1764197461205,16.50449152,143.15,143.14,5.67329364]
[1764197461411,9.99615214,143.15,143.14,5.67329364]
[1764197461922,16.5039222,143.15,143.14,5.67329364]
[1764197462114,6.50777006,143.15,143.14,5.67329364]
[1764197462320,8.65771235,143.18,143.16,2.94]
[1764197462516,8.65771235,143.18,143.17,2.94]
[1764197463312,11.70575139,143.19,143.17,2.94]
[1764197464514,3.0,143.18,143.16,29.73898542]
[1764197464720,3.0,143.18,143.17,6.2875]
[1764197466908,3.0,143.18,143.17,9.1775]
[1764197467114,11.82575139,143.19,143.17,9.1775]
[1764197467310,11.82575139,143.19,143.18,2.89]
[1764197467515,8.70575139,143.19,143.18,2.89]
[1764197467926,8.70575139,143.19,143.18,5.62329364]
[1764197470830,8.70575139,143.19,143.18,26.89]
[1764197471029,11.82575139,143.19,143.18,26.89]
[1764197472431,8.70575139,143.19,143.18,26.89]
[1764197473030,8.70575139,143.19,143.18,2.89]
[1764197473427,8.70575139,143.19,143.18,26.89]
[1764197474128,4.99619961,143.19,143.18,26.89]
[1764197474741,8.14619961,143.19,143.18,26.89]
[1764197477333,16.80391196,143.19,143.18,33.1773]
[1764197478335,13.65391196,143.19,143.18,33.1773]
[1764197478731,16.80391196,143.19,143.18,33.1773]
[1764197479333,16.80391196,143.19,143.16,6.33349178]
[1764197479533,8.09816057,143.18,143.17,23.98]
[1764197479933,8.09816057,143.18,143.16,33.29349178]
[1764197480236,4.94816057,143.17,143.16,33.29349178]
[1764197480940,8.09816057,143.17,143.16,33.29349178]
[1764197481540,8.09816057,143.17,143.16,0.04569178]
[1764197481739,8.09816057,143.17,143.16,24.02569178]
[1764197483231,8.09816057,143.17,143.16,30.31389178]
[1764197484143,16.75117987,143.17,143.16,30.31389178]
[1764197486236,8.09346752,143.17,143.16,30.31389178]
[1764197487137,8.09346752,143.17,143.16,33.29389178]
[1764197492948,3.15,143.17,143.16,33.29389178]
[1764197493841,3.15,143.17,143.16,0.04569178]
[1764197493842,11.80771235,143.17,143.16,0.04569178]
[1764197497357,3.15,143.17,143.16,0.04569178]
[1764197497557,11.80771235,143.17,143.16,0.04569178]
[1764197497860,3.15,143.17,143.16,0.04569178]
[1764197499653,11.80771235,143.17,143.16,0.04569178]
[1764197512672,3.05,143.16,143.13,6.2891]
[1764197512873,3.05,143.15,143.13,6.2891]
[1764197513370,3.05,143.14,143.12,6.2899]
[1764197513763,3.09434019,143.14,143.12,6.33489896]
[1764197514469,3.09434019,143.14,143.12,9.29489896]
[1764197516868,3.09434019,143.14,143.13,6.2895]
[1764197517069,3.09434019,143.14,143.12,0.04499896]
[1764197521074,9.38354019,143.14,143.12,0.04499896]
[1764197521376,3.05,143.13,143.12,0.04499896]
[1764197522272,9.55770984,143.13,143.12,0.04499896]
[1764197526275,3.05,143.13,143.12,0.04499896]
[1764197526778,9.55893164,143.13,143.12,0.04499896]
[1764197526979,3.05,143.13,143.12,0.04499896]
[1764197527762,9.55900404,143.13,143.12,0.04499896]
[1764197527962,3.05,143.13,143.12,0.04499896]
[1764197528573,9.55908778,143.13,143.12,0.04499896]
[1764197540886,18.01828371,143.13,143.12,0.04499896]
[1764197541081,18.01957273,143.13,143.12,0.04499896]
[1764197541787,18.01957273,143.13,143.09,2.85]
[1764197541989,9.57032796,143.11,143.09,2.85]
[1764197542885,9.57032796,143.11,143.09,2.89946556]
[1764197543189,3.06,143.1,143.09,2.89946556]
[1764197545286,9.57032796,143.1,143.09,0.04946556]
[1764197545584,3.06,143.1,143.09,0.04946556]
[1764197546190,9.3508,143.1,143.09,0.04946556]
[1764197547087,3.06,143.08,143.06,5.58452007]
[1764197548189,3.06,143.08,143.06,5.63492425]
[1764197548384,3.06,143.07,143.06,0.05040418]
[1764197548581,3.06,143.06,143.04,2.73452007]
[1764197548782,3.06,143.05,143.04,2.73452007]
[1764197550092,3.06,143.05,143.03,2.90341518]
[1764197550491,9.3531,143.05,143.03,0.05341518]
[1764197550691,3.06,143.04,143.03,0.05341518]
[1764197557498,3.06,143.04,142.99,2.85]
[1764197557499,3.06,143.03,142.99,2.85]
[1764197558298,3.06,143.02,142.96,2.85]
[1764197558487,3.06,142.99,142.96,2.85]
[1764197558792,0.04443912,143.0,142.96,2.85]
[1764197558990,0.04443912,143.0,142.96,5.58452007]
[1764197559194,0.04443912,143.0,142.97,2.85]
[1764197559397,0.04443912,143.0,142.99,2.85]
[1764197559899,3.06,143.05,143.0,2.85]
[1764197560503,3.06,143.05,143.01,2.85]
[1764197560504,3.06,143.04,143.01,2.85]
[1764197560700,3.10682589,143.04,143.01,2.89498055]
[1764197561894,0.04682589,143.04,143.02,5.67452007]
[1764197562100,0.04682589,143.04,143.03,2.94]
[1764197563194,0.04682589,143.04,143.03,9.2339]
[1764197565505,0.04682589,143.04,143.03,33.1539]
[1764197570205,0.04682589,143.04,143.03,9.2339]
[1764197570409,2.97,143.09,143.06,2.94]
[1764197570711,2.97,143.12,143.08,2.94]
[1764197571009,2.97,143.12,143.1,2.94]
[1764197571413,3.02161451,143.12,143.1,2.99080274]
[1764197572814,3.02161451,143.12,143.11,6.2904]
[1764197573610,3.02161451,143.12,143.1,2.99080274]
[1764197573611,3.02161451,143.12,143.1,0.05080274]
[1764197578819,3.02161451,143.12,143.1,2.99080274]
[1764197582624,9.31161451,143.12,143.1,2.99080274]
[1764197584234,2.97,143.11,143.1,2.99080274]
[1764197584430,2.97,143.11,143.1,0.05080274]
[1764197589338,9.2604,143.11,143.1,0.05080274]
[1764197594442,2.97,143.11,143.1,0.05080274]
[1764197595734,9.2604,143.11,143.1,0.05080274]
[1764197602037,3.01,143.07,143.04,3.08]
[1764197602944,3.0566208,143.07,143.04,3.12491644]
[1764197604348,3.01,143.06,143.04,3.12491644]
[1764197605237,3.01,143.05,143.01,3.08]
[1764197605743,3.01,143.05,142.99,203.0528255]
[1764197606243,3.06299613,143.03,142.99,196.7575255]
[1764197607446,3.06299613,143.03,142.99,193.6775255]
[1764197607643,9.35699613,143.03,142.99,193.6775255]
[1764197607845,3.01,143.02,142.99,193.6775255]
[1764197608145,3.01,143.02,142.98,3.08]
[1764197608352,3.01,143.0,142.97,3.08]
[1764197611948,3.01,142.99,142.94,33.2975]
[1764197612147,3.01,142.97,142.94,27.0]
[1764197612854,3.01,142.97,142.95,3.08]
[1764197622254,2.98,142.94,142.89,3.13]
[1764197622464,3.02418909,142.93,142.89,3.13]
[1764197623060,9.2788,142.92,142.89,3.13]
[1764197623259,2.98,142.91,142.89,3.13]
[1764197624148,2.98,142.91,142.86,23.94]
[1764197624149,2.98,142.9,142.87,3.13]
[1764197624349,3.02967345,142.9,142.87,3.13]
[1764197625348,6.3004,142.89,142.87,3.13]
[1764197626461,2.98,142.88,142.86,3.13]
[1764197626850,9.2806,142.88,142.86,3.13]
[1764197627858,2.98,142.87,142.85,3.13]
[1764197630461,6.34957345,142.9,142.85,3.13]
[1764197630666,3.02967345,142.9,142.85,3.13]
[1764197630854,0.04967345,142.9,142.85,3.13]
[1764197631166,0.04967345,142.9,142.88,3.13]
[1764197631663,0.04967345,142.9,142.89,3.13]
[1764197632567,0.04967345,142.9,142.85,119.0058]
[1764197632568,2.98,142.94,142.91,3.13]
[1764197632764,2.98,142.99,142.91,3.13]
[1764197633570,3.02649597,142.96,142.94,0.04525496]
[1764197635572,2.98,142.95,142.94,0.04525496]
[1764197636674,6.34359597,142.96,142.9,3.13]
[1764197636675,2.98,142.93,142.9,3.13]
[1764197637670,3.02607068,142.93,142.9,3.13]
[1764197638368,2.98,142.92,142.87,6.3007]
[1764197638566,2.98,142.92,142.88,3.13]
[1764197640469,2.98,142.91,142.88,3.13]
[1764197644269,2.98,142.9,142.87,3.13]
[1764197644575,3.02632147,142.9,142.87,3.13]
[1764197645668,0.04632147,142.9,142.87,3.13]
[1764197649479,0.04632147,142.9,142.87,9.4309]
[1764197649680,0.04632147,142.9,142.88,3.02]
[1764197652389,0.04632147,142.9,142.88,9.3205]
[1764197652575,0.04632147,142.9,142.89,2.94]
[1764197663691,4.90238703,142.94,142.89,2.94]
[1764197663994,7.77238703,142.95,142.91,2.94]
[1764197664196,2.87,142.95,142.91,2.94]
[1764197664393,7.77238703,142.95,142.91,2.94]
[1764197664791,0.04750568,142.94,142.92,2.98577011]
[1764197664987,4.94989271,142.94,142.92,2.98577011]
[1764197666288,4.90238703,142.93,142.92,2.98577011]
[1764197667293,7.77238703,142.93,142.92,0.04577011]
[1764197667488,2.87,142.92,142.89,2.94]
[1764197667692,4.90238703,142.91,142.89,2.94]
[1764197667894,4.90238703,142.9,142.89,2.94]
[1764197668198,4.90238703,142.91,142.89,2.94]
[1764197668383,4.90238703,142.9,142.89,2.94]
[1764197668590,7.77238703,142.9,142.87,2.94]
[1764197668790,4.90238703,142.89,142.87,2.94]
[1764197669891,4.90238703,142.88,142.87,2.94]
[1764197670601,4.90238703,142.89,142.87,2.94]
[1764197670897,4.90238703,142.88,142.87,2.94]
[1764197671098,4.90238703,142.89,142.87,2.94]
[1764197671294,4.90238703,142.88,142.87,2.94]
[1764197671493,4.90238703,142.89,142.87,2.94]
[1764197671694,4.90238703,142.88,142.87,2.94]
[1764197671895,4.90238703,142.89,142.87,2.94]
[1764197672097,4.90238703,142.88,142.87,2.94]
[1764197672402,4.90238703,142.89,142.87,2.94]
[1764197672599,4.90238703,142.88,142.87,2.94]
[1764197672795,4.90238703,142.89,142.87,2.94]
[1764197672993,4.90238703,142.88,142.87,2.94]
[1764197673189,4.90238703,142.89,142.87,2.94]
[1764197673393,4.90238703,142.88,142.87,2.94]
[1764197673701,4.90238703,142.89,142.87,2.94]
[1764197673897,4.90238703,142.88,142.87,2.94]
[1764197674196,4.90238703,142.89,142.87,2.94]
[1764197674397,4.90238703,142.88,142.87,2.94]
[1764197674599,4.90238703,142.89,142.87,2.94]
[1764197674801,4.90238703,142.88,142.87,2.94]
[1764197675002,4.90238703,142.89,142.87,2.94]
[1764197675304,4.90238703,142.88,142.87,2.94]
[1764197675505,7.77238703,142.89,142.87,2.94]
[1764197675709,4.90238703,142.88,142.87,2.94]
[1764197675909,4.9150641,142.88,142.87,2.94]
[1764197684422,2.85,142.87,142.85,2.91]
[1764197684615,4.9150641,142.86,142.85,2.91]
[1764197685231,2.903627,142.87,142.85,2.91]
[1764197685432,7.8186911,142.87,142.85,2.91]
[1764197685728,2.903627,142.87,142.85,2.91]
[1764197685919,7.8186911,142.87,142.85,2.91]
[1764197686115,2.903627,142.87,142.85,2.91]
[1764197686525,7.8186911,142.87,142.85,2.91]
[1764197686720,2.903627,142.87,142.85,2.91]
[1764197686925,7.8186911,142.87,142.85,2.91]
[1764197687127,2.903627,142.87,142.85,2.91]
[1764197687326,7.8186911,142.87,142.85,9.2118]
[1764197687629,2.903627,142.87,142.86,2.91]
[1764197687830,4.9686911,142.87,142.86,2.91]
[1764197688032,0.053627,142.87,142.86,2.91]
[1764197688231,4.9686911,142.87,142.86,2.91]
[1764197688423,0.053627,142.87,142.86,2.91]
[1764197688623,7.8186911,142.87,142.86,2.91]
[1764197688820,2.85,142.86,142.84,2.91]
[1764197689632,2.85,142.86,142.84,9.2122]
[1764197689831,2.85,142.86,142.85,2.91]
[1764197690033,2.85,142.86,142.84,9.2122]
[1764197690430,7.7650641,142.86,142.84,9.2122]
[1764197690829,7.7650641,142.86,142.84,2.91]
[1764197691028,4.9150641,142.85,142.84,2.91]
[1764197692635,7.7650641,142.86,142.84,2.91]
[1764197692933,2.85,142.84,142.8,2.91]
[1764197693132,4.95927831,142.83,142.81,2.91]
[1764197693335,0.04421421,142.83,142.81,2.91]
[1764197694635,0.04421421,142.83,142.81,9.2136]
[1764197694932,0.04421421,142.83,142.82,2.91]
[1764197697134,0.04421421,142.83,142.82,9.2132]
[1764197698337,0.04421421,142.83,142.82,33.1732]
[1764197700128,0.04421421,142.83,142.82,9.2132]
[1764197700333,0.04421421,142.83,142.82,33.1732]
[1764197701634,2.85,142.88,142.85,2.91]
[1764197702632,2.90286381,142.88,142.85,9.25833418]
[1764197707142,2.85,142.87,142.85,0.04653418]
[1764197707642,5.59301065,142.87,142.85,0.04653418]
[1764197708132,3.02,142.86,142.85,0.04653418]
[1764197712440,9.3214,142.86,142.85,0.04653418]
[1764197712646,3.02,142.86,142.85,0.04653418]
[1764197713240,9.4970516,142.86,142.85,0.04653418]
[1764197713444,9.3214,142.86,142.85,0.04653418]
[1764197714245,15.7984516,142.86,142.85,0.04653418]
[1764197717950,3.04,142.87,142.85,3.14653418]
[1764197718250,9.5170516,142.87,142.85,3.14653418]
[1764197718560,0.05286381,142.88,142.85,0.04653418]
[1764197718561,9.5170516,142.86,142.85,0.04653418]
[1764197718847,3.04,142.86,142.85,0.04653418]
[1764197723050,9.3414,142.86,142.85,0.04653418]
[1764197726152,15.8184516,142.86,142.85,0.04653418]
[1764197728954,9.3414,142.86,142.85,0.04653418]
[1764197729146,15.81882045,142.86,142.85,0.04653418]
[1764197731156,9.3414,142.86,142.85,0.04653418]
[1764197737360,13.07072709,142.88,142.86,3.1]
[1764197737361,8.73293654,142.88,142.86,3.1]
[1764197737556,0.05286381,142.88,142.86,3.1]
[1764197738159,3.09286381,142.88,142.86,3.1]
[1764197738964,3.09286381,142.88,142.85,3.14653418]
[1764197739151,3.09286381,142.88,142.85,0.04653418]
[1764197739556,3.04,142.87,142.85,0.04653418]
[1764197739958,3.04,142.86,142.85,0.04653418]
[1764197743864,9.52352561,142.86,142.85,0.04653418]
[1764197749266,15.82492561,142.86,142.85,0.04653418]
[1764197752474,15.82492561,142.86,142.85,2.98653418]
[1764197752965,15.82492561,142.86,142.85,0.04653418]
[1764197753979,6.48352561,142.86,142.85,2.98653418]
[1764197754471,2.98,142.87,142.85,2.98653418]
[1764197756976,2.98,142.86,142.85,0.04653418]
[1764197757675,9.46352561,142.86,142.85,0.04653418]
[1764197758775,15.76492561,142.86,142.85,0.04653418]
[1764197765981,9.2814,142.86,142.85,0.04653418]
[1764197770577,15.75655967,142.86,142.85,0.04653418]
[1764197779991,6.47515967,142.87,142.85,3.11653418]
[1764197780493,18.6645183,142.88,142.85,3.11653418]
[1764197785099,12.3638183,142.88,142.85,3.11653418]
[1764197787389,5.88865863,142.88,142.85,3.11653418]
[1764197790706,5.88865863,142.88,142.86,3.07]
[1764197790707,2.79865863,142.88,142.86,3.07]
[1764197790909,0.05286381,142.88,142.86,3.07]
[1764197791408,0.05286381,142.88,142.87,3.07]
[1764197796209,0.05286381,142.88,142.87,9.371]
[1764197800408,5.83579482,142.92,142.89,3.07]
[1764197800805,6.47515967,142.94,142.92,3.07]
[1764197800806,3.09,142.93,142.92,3.07]
[1764197801005,12.31095449,142.94,142.92,3.07]
[1764197801214,5.83579482,142.94,142.92,3.07]
[1764197801506,5.88781898,142.94,142.92,9.41910478]
[1764197805419,5.88781898,142.94,142.93,3.13]
[1764197805612,2.92,142.93,142.92,6.34910478]
[1764197806014,2.92,142.93,142.92,9.47910478]
[1764197806213,5.71781898,142.94,142.92,9.47910478]
[1764197809615,2.97202416,142.94,142.92,9.47910478]
[1764197811022,2.97202416,142.94,142.93,3.13]
[1764197814025,0.05202416,142.94,142.93,3.13]
[1764197814623,0.05202416,142.94,142.93,9.4284]
[1764197814825,2.97202416,142.94,142.93,6.2984]
[1764197820827,2.97202416,142.94,142.92,3.18030478]
[1764197821721,2.97202416,142.94,142.92,9.47910478]
[1764197823030,2.97202416,142.94,142.93,3.13]
[1764197823426,2.97202416,142.94,142.92,9.47910478]
[1764197829431,2.97202416,142.94,142.93,3.09]
[1764197829629,0.05202416,142.94,142.93,3.09]
[1764197832729,0.05202416,142.94,142.93,9.3884]
[1764197838026,6.47515967,142.98,142.96,3.15]
[1764197838225,8.68007273,143.0,142.96,3.15]
[1764197838226,9.50515967,143.0,142.96,3.15]
[1764197839045,0.04722526,142.99,142.97,3.19947642]
[1764197839349,0.04722526,142.99,142.97,9.49607642]
[1764197839544,0.04722526,142.99,142.98,3.15]
[1764197844638,3.03,143.03,143.0,3.15]
[1764197845449,3.03,143.03,143.01,6.2947]
[1764197845751,0.04928576,143.03,143.02,3.15]
[1764197846545,0.04928576,143.03,143.02,9.4442]
[1764197849856,3.03,143.05,143.04,6.2935]
[1764197850055,3.03,143.07,143.05,3.15]
[1764197850260,4.28195226,143.1,143.05,3.15]
[1764197850261,3.03,143.09,143.05,3.15]
[1764197850658,3.03,143.09,143.07,9.4421]
[1764197850857,3.08246578,143.09,143.07,9.49057711]
[1764197851045,0.05246578,143.09,143.08,3.15]
[1764197851450,3.03,143.12,143.09,3.15]
[1764197852453,3.07490138,143.12,143.09,3.15]
[1764197852654,3.07490138,143.12,143.09,9.4411]
[1764197859671,3.07490138,143.12,143.1,3.15]
[1764197859870,3.07490138,143.12,143.08,3.15]
[1764197860070,3.07490138,143.12,143.07,33.41037711]
[1764197861677,3.07490138,143.12,143.08,2.99]
[1764197862179,3.07490138,143.12,143.07,30.26037711]
[1764197862471,3.07490138,143.12,143.07,33.25037711]
[1764197866981,3.07490138,143.12,143.08,2.99]
[1764197867882,3.07490138,143.12,143.07,33.25037711]
[1764197868181,3.07490138,143.12,143.08,2.99]
[1764197871382,3.1,143.11,143.08,2.99]
[1764197871777,3.1,143.11,143.09,2.99]
[1764197872382,3.1,143.11,143.09,9.2813]
[1764197874990,0.04490138,143.12,143.1,2.99]
[1764197875189,3.14490138,143.12,143.1,2.99]
[1764197875687,3.14490138,143.12,143.09,6.2913]
[1764197875887,3.14490138,143.12,143.09,9.2813]
[1764197876586,3.14490138,143.12,143.1,9.2807]
[1764197876787,0.04490138,143.12,143.11,2.99]
[1764197878494,3.14490138,143.12,143.1,9.33164046]
[1764197878787,0.04490138,143.12,143.11,2.99]
[1764197879298,3.14490138,143.12,143.1,0.05094046]
[1764197880197,0.04490138,143.12,143.1,3.04094046]
[1764197880894,0.04490138,143.12,143.11,2.99]
[1764197883490,3.14490138,143.12,143.1,0.05094046]
[1764197883984,3.14490138,143.12,143.1,3.04094046]
[1764197884797,3.14490138,143.12,143.1,9.33184046]
[1764197887200,3.14490138,143.12,143.1,3.04094046]
[1764197893400,0.04490138,143.12,143.1,3.04094046]
[1764197894695,0.04490138,143.12,143.11,3.0]
[1764197895603,6.52006105,143.12,143.11,3.0]
[1764197895801,0.04490138,143.12,143.11,3.0]
[1764197899111,2.90490138,143.12,143.1,0.05094046]
[1764197899410,9.38006105,143.12,143.1,3.05094046]
[1764197899914,6.47515967,143.11,143.1,3.05094046]
[1764197904720,0.04490138,143.12,143.1,3.05094046]
[1764197905718,0.04490138,143.12,143.1,9.34184046]
[1764197906019,0.04490138,143.12,143.11,3.0]
[1764197906226,6.52006105,143.12,143.11,3.0]
[1764197907626,0.04490138,143.12,143.11,3.0]
[1764197909127,6.52006105,143.12,143.11,3.0]
[1764197912026,6.52006105,143.12,143.11,9.2905]
[1764197912722,0.04490138,143.12,143.11,9.2905]
[1764197927237,6.47515967,143.15,143.13,3.13]
[1764197927538,6.47515967,143.17,143.14,3.13]
[1764197927738,6.47515967,143.18,143.17,9.4178]
[1764197927939,6.47515967,143.19,143.18,3.13]
[1764197928139,6.47515967,143.22,143.18,3.13]
[1764197928340,0.04955099,143.21,143.2,9.4164]
[1764197929944,6.47515967,143.26,143.23,3.13]
[1764197930142,3.15,143.27,143.23,3.13]
[1764197930143,9.62515967,143.27,143.23,3.13]
[1764197930842,0.04802207,143.26,143.24,3.17736238]
[1764197931741,3.19802207,143.26,143.24,3.17736238]
[1764197931938,3.19802207,143.26,143.24,0.04736238]
[1764197934442,0.04802207,143.26,143.24,9.46196238]
[1764197934639,0.04802207,143.26,143.25,3.13]
[1764197935040,3.19802207,143.26,143.24,0.04736238]
[1764197936645,0.04802207,143.26,143.24,9.46206238]
[1764197939351,0.04802207,143.26,143.25,3.13]
[1764197939943,3.19802207,143.26,143.24,9.46206238]
[1764197941450,0.04802207,143.26,143.25,3.13]
[1764197943450,3.19802207,143.26,143.24,0.04736238]
[1764197943646,3.15,143.25,143.19,3.13]
[1764197943851,4.18347897,143.26,143.19,3.13]
[1764197943852,3.15,143.23,143.19,3.13]
[1764197944053,3.15,143.23,143.16,3.13]
[1764197944546,3.15,143.21,143.17,3.13]
[1764197944752,3.20101584,143.2,143.18,6.33872651]
[1764197945939,3.20101584,143.2,143.18,0.05162651]
[1764197946144,3.15,143.19,143.18,0.05162651]
[1764197946843,7.2854569,143.19,143.18,0.05162651]
[1764197947444,3.02,143.18,143.12,3.13]
[1764197948446,3.06478199,143.16,143.14,0.05162357]
[1764197950653,3.02,143.14,143.09,3.13]
[1764197950846,3.02,143.14,143.07,3.13]
[1764197951047,3.02,143.14,143.09,3.13]
[1764197951549,2.98,143.17,143.11,2.85]
[1764197951754,0.04886437,143.15,143.14,2.85]
[1764197952053,0.04528129,143.16,143.14,9.139]
[1764197952243,0.04528129,143.16,143.15,2.85]
[1764197954952,0.04528129,143.16,143.14,2.85]
[1764197955550,0.04528129,143.16,143.14,9.139]
[1764197955751,0.04528129,143.16,143.15,2.85]
[1764197957450,5.76073819,143.16,143.13,0.04584782]
[1764197957653,2.98,143.15,143.13,0.04584782]
[1764197959348,0.04528129,143.16,143.13,2.89584782]
[1764197960257,3.02528129,143.16,143.13,0.04584782]
[1764197961560,3.02528129,143.16,143.07,2.85]
[1764197961762,2.98,143.16,143.07,2.85]
[1764197962762,3.02737435,143.13,143.1,0.04751821]
[1764197963864,2.98,143.1,143.04,2.85]
[1764197964563,2.98,143.1,143.05,2.85]
[1764197964964,3.02849503,143.09,143.06,2.89835167]
[1764197965667,0.04849503,143.09,143.07,2.85]
[1764197966571,0.04849503,143.09,143.08,2.85]
[1764197978078,7.005,143.15,143.1,6.2908]
[1764197978275,9.985,143.15,143.11,2.85]
[1764197978879,2.98,143.14,143.11,2.85]
[1764197979179,2.98,143.14,143.11,9.1403]
[1764197979384,3.03129909,143.14,143.11,9.19233365]
[1764197980075,3.03129909,143.14,143.11,0.05203365]
[1764197985175,9.32049909,143.14,143.11,0.05203365]
[1764197985376,3.07,143.13,143.11,0.05203365]
[1764197985977,9.3596,143.13,143.11,0.05203365]
[1764197986181,3.07,143.12,143.11,0.05203365]
[1764197987085,9.36,143.12,143.11,0.05203365]
[1764197987885,10.12629909,143.14,143.11,3.11203365]
[1764197988083,3.07,143.13,143.11,0.05203365]
[1764197988697,3.12129909,143.14,143.11,3.11203365]
[1764197992695,3.12129909,143.14,143.11,9.40253365]
[1764197998995,3.07,143.13,143.11,6.34253365]
[1764197999388,3.07,143.13,143.11,0.05203365]
[1764197999588,3.07,143.12,143.11,0.05203365]
[1764198000495,3.07,143.11,143.05,3.06]
[1764198000792,3.07,143.1,143.05,3.06]
[1764198000998,3.07,143.1,143.06,3.06]
[1764198001485,3.11696509,143.09,143.07,0.04650829]
[1764198002494,15.84763749,143.09,143.07,0.04650829]
[1764198002692,3.07,143.07,143.02,3.06]
[1764198003085,3.07,143.07,143.04,9.3535]
[1764198003683,3.07,143.07,143.05,3.06]
[1764198003884,0.04816782,143.07,143.06,3.06]
[1764198008001,0.04816782,143.07,143.06,3.07]
[1764198010997,6.47745667,143.11,143.08,3.07]
[1764198011509,9.33745667,143.13,143.1,3.12]
[1764198011905,9.39083768,143.13,143.1,3.16931497]
[1764198012198,6.53083768,143.13,143.12,3.12]
[1764198012405,0.05338101,143.13,143.12,3.12]
[1764198013497,4.09562648,143.14,143.13,9.4096]
[1764198013701,11.63007273,143.18,143.14,3.12]
[1764198013899,2.95,143.18,143.14,3.12]
[1764198014401,2.95,143.18,143.15,3.12]
[1764198014701,3.00080788,143.18,143.15,3.16698271]
[1764198015408,0.05080788,143.18,143.15,3.16698271]
[1764198015807,0.05080788,143.18,143.17,3.12]
[1764198016005,3.00080788,143.18,143.15,0.04698271]
[1764198016410,3.00080788,143.18,143.15,3.16698271]
[1764198021107,0.05080788,143.18,143.15,3.16698271]
[1764198021296,0.05080788,143.18,143.16,3.12]